Cogmind - Beta 17 @@@ ROGUE MODE // 2026.07.30 @ 20:20:26 // Winter2022/Polymind Player: TinyBoulder Result: Self-destructed Performance ------------- Evolutions (3) 1500 Regions Visited (5) 1000 Robots Destroyed (5) 25 Value Destroyed (235) 235 Prototype IDs (0) 0 Alien Tech Used (0) 0 Bonus (2114) 2114 TOTAL SCORE: 4634 Bonus ------- Polymind Skill 1080 Pacifist 834 Entered Garrisons 200 Cogmind --------- Core Integrity 147/700 Matter 0/0 Energy 50/50 System Corruption 0% Temperature Cool (9) Movement Core (100) Ox1 Location -7/Garrison Parts ------- > --- POWER (1) -------- (None) > --- PROPULSION (2) --- (None) > --- UTILITY (1) ------ Improved Heat Sink > --- WEAPON (1) ------- Particle Gun > --- INVENTORY (1) ---- (None) Peak State ------------ > --- POWER ------------ Light Nuclear Core > --- PROPULSION ------- Aluminum Leg Aluminum Leg > --- UTILITY ---------- Improved Heat Sink > --- WEAPON ----------- Particle Gun > --- INVENTORY -------- (None) [Rating: 10] Favorites ----------- Power Light Ion Engine Engine Light Ion Engine Power Core Light Nuclear Core Propulsion Wheel Leg Aluminum Leg Wheel Wheel Utility Improved Terrain Scanner Device Improved Terrain Scanner Weapon Mining Laser Energy Gun Particle Gun Special Weapon Mining Laser Build | -11 -10 -9 -8 -7 -7 ------- Run | Yrd Mat Mat Mat Fac Gar Slots Evolved . | . . . . . . Power . | . . . . . . Propulsion . | . . . . . . Utility . | . . . . . . Weapon . | . . . . . . Parts Attached . | . . . . . . Power . | . . . . . . Engine . | . . . . . . Core . | . . . . . . Reactor . | . . . . . . Propulsion . | . . . . . . Treads . | . . . . . . Leg . | . . . . . . Wheel . | . . . . . . Hover . | . . . . . . Flight . | . . . . . . Utility . | . . . . . . Device . | . . . . . . Storage . | . . . . . . Processor . | . . . . . . Hackware . | . . . . . . Protection . | . . . . . . Artifact . | . . . . . . Weapon . | . . . . . . Energy Gun . | . . . . . . Energy Cannon . | . . . . . . Ballistic Gun . | . . . . . . Ballistic Cannon . | . . . . . . Launcher . | . . . . . . Special Weapon . | . . . . . . Impact Weapon . | . . . . . . Slashing Weapon . | . . . . . . Piercing Weapon . | . . . . . . Special Melee Weapon . | . . . . . . Unidentified Prototypes . | . . . . . . Parts Lost 7 | . . . 4 . 3 Power 2 | . . . 1 . 1 Propulsion 4 | . . . 2 . 2 Utility . | . . . . . . Weapon 1 | . . . 1 . . Highest Loss Streak 4 | . . . 4 . 3 To Critical Strikes . | . . . . . . Average Backups . | . . . . . . Power . | . . . . . . Propulsion . | . . . . . . Utility . | . . . . . . Weapon . | . . . . . . Tool/Special . | . . . . . . Unused Backups . | . . . . . . Power . | . . . . . . Propulsion . | . . . . . . Utility . | . . . . . . Weapon . | . . . . . . Tool/Special . | . . . . . . Average Slot Usage (%) 78 | . 100 100 93 26 100 Engine 6 | . 16 16 14 . . Core 6 | . . . . 5 20 Leg 13 | . . . . 10 40 Wheel 14 | . 33 33 29 . . Device 21 | . 33 33 33 5 20 Energy Gun 6 | . . . . 5 20 Special Weapon 6 | . 16 16 14 . . Peak Build Rating 10 | 8 8 8 8 10 10 Average Rating 6 | 5 8 8 7 3 9 On Entrance 5 | . 8 8 8 . 10 Avg Prop Armor Cover (%) . | . . . . . . Naked Turns 102 | . . . . 102 . Heaviest Build 9 | 6 6 6 6 9 9 Greatest Support 20 | 20 20 20 20 20 20 Greatest Overweight (x) . | . . . . . . Average Overweight (x) . | . . . . . . Largest Inventory Capacity 1 | . . . . 1 1 Average Capacity . | . . . . . 1 Most Carried . | . . . . . . Average Carried . | . . . . . . Final Capacity 1 | . . . . 1 1 Final Carried . | . . . . . . Class Distribution -------------------- 43% | Tunneler 36% | Grunt 20% | Cogmind Dominant Class ---------------- Tunneler | -10/Materials Tunneler | -9/Materials Tunneler | -8/Materials Cogmind | -7/Factory Grunt | -7/Garrison Resources | -11 -10 -9 -8 -7 -7 ----------- Run | Yrd Mat Mat Mat Fac Gar Matter Collected . | . . . . . . Remotely . | . . . . . . Salvage Created 303 | . . . . 171 132 Parts 11 | . . . . 6 5 Haulers Intercepted . | . . . . . . Recyclers Shooed . | . . . . . . Parts Field Recycled . | . . . . . . Retrieved Matter . | . . . . . . Parts Self-Destructed . | . . . . . . Prevented . | . . . . . . Parts Restored . | . . . . . . Kills | -11 -10 -9 -8 -7 -7 ------- Run | Yrd Mat Mat Mat Fac Gar Combat Hostiles Destroyed 5 | . . . . 3 2 Guns 5 | . . . . 3 2 Classes Destroyed 1 | . . . . 1 . Grunt 5 | . . . . 3 2 Best Kill Streak 3 | . . . . 3 2 Combat Bots Only 3 | . . . . 3 2 Max Kills in Single Turn 1 | . . . . 1 1 Gunslinging . | . . . . . . Exploded . | . . . . . . Melee . | . . . . . . Uniques/NPCs Destroyed . | . . . . . . Combat | -11 -10 -9 -8 -7 -7 -------- Run | Yrd Mat Mat Mat Fac Gar Hostile Shots Fired 152 | . . . 10 116 26 Missed 64 | . . . 5 50 9 Hits 88 | . . . 5 66 17 Projectile 88 | . . . 5 66 17 AOE 1 | . . . 1 . . Critical Strikes 3 | . . . 1 1 1 Damage Taken 1075 | . . . 225 594 256 Core 615 | . . . 62 481 72 Absorbed by Shields . | . . . . . . Core Remaining (%) 97 | 100 100 100 88 . . Volleys Fired 30 | . . 2 . 14 14 Largest 1 | . . 1 . 1 1 Hottest 100 | . . 100 . 65 65 Shots Fired 30 | . . 2 . 14 14 Gun 28 | . . . . 14 14 Cannon . | . . . . . . Launcher . | . . . . . . Special 2 | . . 2 . . . Kinetic . | . . . . . . Thermal 30 | . . 2 . 14 14 Explosive . | . . . . . . Electromagnetic . | . . . . . . Robot Hit Streak 7 | . . . . 5 7 Robot Miss Streak 2 | . . . . 1 2 Penetration Max . | . . . . . . Secondary Targets . | . . . . . . Shots Hit Robots 22 | . . . . 12 10 Core Hits 10 | . . . . 6 4 Critical Kills . | . . . . . . Critical Parts Destroyed . | . . . . . . Critical Strikes 1 | . . . . 1 . Burn 1 | . . . . 1 . Melee Attacks . | . . . . . . Impact . | . . . . . . Slashing . | . . . . . . Piercing . | . . . . . . Sneak Attacks . | . . . . . . Combat Hostiles . | . . . . . . Follow-up Attacks . | . . . . . . Damage Inflicted 365 | . . . . 203 162 Guns 365 | . . . . 203 162 Cannons . | . . . . . . Explosions . | . . . . . . Melee . | . . . . . . Ramming . | . . . . . . Kinetic . | . . . . . . Thermal 365 | . . . . 203 162 Explosive . | . . . . . . Electromagnetic . | . . . . . . Impact . | . . . . . . Slashing . | . . . . . . Piercing . | . . . . . . Highest Corruption . | . . . . . . Average Corruption . | . . . . . . Corruption Purged . | . . . . . . Corruption Blocked . | . . . . . . Overload Shots . | . . . . . . Overflow Damage . | . . . . . . Projectiles . | . . . . . . Explosions . | . . . . . . Melee . | . . . . . . Knockbacks . | . . . . . . Impact . | . . . . . . Kinetic . | . . . . . . Secondary . | . . . . . . Self-Inflicted Damage . | . . . . . . Shots . | . . . . . . Rammed . | . . . . . . Targets Rammed . | . . . . . . Kicked . | . . . . . . Crushed . | . . . . . . Highest Temperature 128 | . . 128 . 81 61 Average Temperature 46 | . . 66 . 40 35 Received Heat Transfer 423 | . . . . 252 171 Siege Activations . | . . . . . . Martial Activations . | . . . . . . Shielding Activations . | . . . . . . Robots Disrupted . | . . . . . . Combat Hostiles . | . . . . . . Robots Corrupted . | . . . . . . Combat Hostiles . | . . . . . . Parts Fried . | . . . . . . Impact Corruptions . | . . . . . . Robots Melted . | . . . . . . Combat Hostiles . | . . . . . . Parts Melted 1 | . . . . . 1 Heat Transferred 888 | . . . . 518 370 Parts Sabotaged . | . . . . . . Parts Stolen . | . . . . . . Parts Stripped . | . . . . . . Power Chain Reactions . | . . . . . . Alert | -11 -10 -9 -8 -7 -7 ------- Run | Yrd Mat Mat Mat Fac Gar Maximum Alert Level . | . . . . . . Low Security (%) 100 | 100 100 100 100 100 100 Level 1 . | . . . . . . Level 2 . | . . . . . . Level 3 . | . . . . . . Level 4 . | . . . . . . Level 5 . | . . . . . . High Security . | . . . . . . Max Security . | . . . . . . Peak Influence 77 | . . 1 . 60 77 Initial 37 | . . . . . 37 Average 19 | . . . . 8 63 Influence Increases 116 | . . 2 . 74 40 Destroy 0b10 Robot/C 100 | . . . . 60 40 Destroy Leader 10 | . . . . 10 . Successful Hack 4 | . . . . 4 . Destroy Structure 2 | . . 2 . . . Influence Decreases 69 | . . 2 . 20 47 Entered New Map 17 | . . . . . 17 Time Decay 22 | . . 2 . 20 . Lost Part 30 | . . . . . 30 Squads Dispatched 1 | . . . . 1 . Investigation . | . . . . . . Extermination . | . . . . . . Reinforcement 1 | . . . . 1 . Assault . | . . . . . . Garrison . | . . . . . . Intercept . | . . . . . . Searches Triggered . | . . . . . . Construction Impeded . | . . . . . . Haulers Reinforced . | . . . . . . Active Scanning Responses . | . . . . . . Cargo Convoy Interrupts . | . . . . . . Stealth | -11 -10 -9 -8 -7 -7 --------- Run | Yrd Mat Mat Mat Fac Gar Distress Signals 1 | . . . 1 . . Communications Jammed . | . . . . . . Distress Signals . | . . . . . . Times Spotted 25 | . . . 4 7 14 Peak Tracking Total 12 | . . . 5 4 12 Tactical Retreats . | . . . . . . Traps | -11 -10 -9 -8 -7 -7 ------- Run | Yrd Mat Mat Mat Fac Gar Traps Triggered 1 | . . . . . 1 Indirectly . | . . . . . . Trap Hack Attempts . | . . . . . . Triggered . | . . . . . . Disarmed . | . . . . . . Reprogrammed . | . . . . . . Reused . | . . . . . . Traps Extracted . | . . . . . . Installed . | . . . . . . Triggered . | . . . . . . Machines | -11 -10 -9 -8 -7 -7 ---------- Run | Yrd Mat Mat Mat Fac Gar Machines Disabled . | . . . . . . Max in Single Turn . | . . . . . . Machines Repaired . | . . . . . . Machines Dismantled . | . . . . . . Machines Sabotaged . | . . . . . . Overloaded Fab Kills . | . . . . . . Hacking | -11 -10 -9 -8 -7 -7 --------- Run | Yrd Mat Mat Mat Fac Gar Machines Accessed 1 | . . . . 1 . Terminals . | . . . . . . Fabricators . | . . . . . . Repair Stations . | . . . . . . Recycling Units . | . . . . . . Scanalyzers . | . . . . . . Garrison Access 1 | . . . . 1 . Total Hacks 1 | . . . . 1 . Successful 1 | . . . . 1 . Failed . | . . . . . . Catastrophic . | . . . . . . Database Lockouts . | . . . . . . Manual . | . . . . . . Terminals . | . . . . . . Fabricators . | . . . . . . Repair Stations . | . . . . . . Recycling Units . | . . . . . . Scanalyzers . | . . . . . . Garrison Access 1 | . . . . 1 . Terminal Hacks . | . . . . . . Fabricator Hacks . | . . . . . . Repair Station Hacks . | . . . . . . Recycling Unit Hacks . | . . . . . . Scanalyzer . | . . . . . . Garrison Access Hacks 1 | . . . . 1 . Unlock Access 1 | . . . . 1 . Unauthorized Hacks . | . . . . . . Terminals . | . . . . . . Fabricators . | . . . . . . Repair Stations . | . . . . . . Recycling Units . | . . . . . . Scanalyzers . | . . . . . . Garrison Access . | . . . . . . Data Cores Recovered . | . . . . . . Used . | . . . . . . Hacking Detections . | . . . . . . Full Trace Events . | . . . . . . Feedback Events . | . . . . . . Feedback Blocked . | . . . . . . Robot Schematics Acquired . | . . . . . . Robots Built . | . . . . . . Authchips . | . . . . . . Time . | . . . . . . Total Robot Build Rating . | . . . . . . Part Schematics Acquired . | . . . . . . Parts Built . | . . . . . . Authchips . | . . . . . . Time . | . . . . . . Total Part Build Rating . | . . . . . . Part Studies Acquired . | . . . . . . Parts Repaired . | . . . . . . Time . | . . . . . . Parts Recycled . | . . . . . . Recycled Matter . | . . . . . . Retrieved Matter . | . . . . . . Retrieved Components . | . . . . . . Parts Scanalyzed . | . . . . . . Part Schematics Acquired . | . . . . . . Parts Damaged . | . . . . . . Bothacking | -11 -10 -9 -8 -7 -7 ------------ Run | Yrd Mat Mat Mat Fac Gar Used RIF Installer . | . . . . . . Robots Hacked 1 | . . . . 1 . Non-combat . | . . . . . . Combat 1 | . . . . 1 . Robot Hacks Applied 2 | . . . . 2 . find_shortcuts 1 | . . . . 1 . find_garrison 1 | . . . . 1 . Relay Couplers Released . | . . . . . . Fabnet Peak Effective % . | . . . . . . Robots Rewired . | . . . . . . Allies Hacked . | . . . . . . Hacks Repelled . | . . . . . . Allies | -11 -10 -9 -8 -7 -7 -------- Run | Yrd Mat Mat Mat Fac Gar Total Allies . | . . . . . . Largest Group . | . . . . . . Highest-Rated Group . | . . . . . . Highest-Rated Ally . | . . . . . . Total Orders . | . . . . . . Ally Attacks . | . . . . . . Total Damage . | . . . . . . Kills . | . . . . . . Allies Corrupted . | . . . . . . Allies Melted . | . . . . . . Intel | -11 -10 -9 -8 -7 -7 ------- Run | Yrd Mat Mat Mat Fac Gar Active Infowar (turns) 234 | 13 52 77 92 . . Terrain 234 | 13 52 77 92 . . Seismic 234 | 13 52 77 92 . . Robot Analysis Total 2 | 1 . . . 1 . Derelict Logs Recovered . | . . . . . . Drone Launches . | . . . . . . Drone Recoveries . | . . . . . . Exploration | -11 -10 -9 -8 -7 -7 ------------- Run | Yrd Mat Mat Mat Fac Gar Turns Passed 525 | 20 52 77 92 146 138 Spaces Moved 536 | 26 64 81 117 165 83 Core 170 | 13 . . 5 152 . Treads . | . . . . . . Legs 96 | . . . . 13 83 Wheels 270 | 13 64 81 112 . . Hover . | . . . . . . Flight . | . . . . . . Fastest Speed 50 | 50 80 80 50 50 120 Average Speed 77 | 65 80 80 78 55 120 Slowest Speed 120 | 80 80 80 80 120 120 Overloaded Moves . | . . . . . . Propulsion Burnouts . | . . . . . . Robots Hopped . | . . . . . . Potential Cave-ins . | . . . . . . Cave-ins Triggered . | . . . . . . Exploration Rate (%) 15 | 4 18 16 27 6 24 Regions Visited 5 Branch Regions . Pre-discovered Areas . | . . . . . . Known Exits Taken 1 | . . . . 1 . Unknown Exits Taken 4 | 1 1 1 1 . . Scrap Searched . | . . . . . . Spaces Dug 2 | . . 2 . . . Terrain Destroyed 2 | . . 2 . . . Melee . | . . . . . . Projectile 2 | . . 2 . . . AOE . | . . . . . . Terrain Rammed . | . . . . . . Walls Destroyed . | . . . . . . Machines Disabled . | . . . . . . Actions | -11 -10 -9 -8 -7 -7 --------- Run | Yrd Mat Mat Mat Fac Gar Total 606 | 28 64 86 116 205 107 Wait 34 | . . 2 . 27 5 Move 531 | 25 63 80 116 164 83 Hop . | . . . . . . Pick Up . | . . . . . . Fast Attach . | . . . . . . Attach . | . . . . . . Detach . | . . . . . . Swap . | . . . . . . Drop . | . . . . . . Fire 30 | . . 2 . 14 14 Melee . | . . . . . . Ram . | . . . . . . Kick . | . . . . . . Crush . | . . . . . . Escape Stasis 5 | . . . . . 5 Rewire . | . . . . . . Trap . | . . . . . . Miscellaneous 6 | 3 1 2 . . . Route ------- -11/Scrapyard -10/Materials -9/Materials (discovered 2 exits: [*Mat] / [*Sto]) -8/Materials -7/Factory -7/Garrison History --------- Turn | Location | Event 3 | -11/Scrapyard | Discovered new exit (range 14) 21 | -11/Scrapyard | Entered Materials 63 | -10/Materials | Discovered new exit (range 14) 73 | -10/Materials | Entered another Materials area 139 | -9/Materials | Discovered new exit (range 14) 150 | -9/Materials | Discovered new exit (range 12) 150 | -9/Materials | Entered another Materials area 233 | -8/Materials | Discovered new exit (range 13) 242 | -8/Materials | Entered Factory 270 | -7/Factory | Lost 4 parts (1p2n1w) 330 | -7/Factory | Core integrity fell below 50% 387 | -7/Factory | Identified exit to Garrison 388 | -7/Factory | Entered Garrison 414 | -7/Garrison | Triggered checkpoint 516 | -7/Garrison | Triggered checkpoint 524 | -7/Garrison | Triggered checkpoint 526 | -7/Garrison | Self-destructed Last Messages --------------- 00443_ Imp. Heat Sink melted. 00443_ G-47 Trooper destroyed. 00450_ Triggered Stasis Trap. 00450_ A bubble of rippling energy engulfs the area. 00450_ Field strength at 85. 00451_ Field strength at 70. 00452_ Field strength at 55. 00453_ Field strength at 40. 00454_ Field strength at 25. 00455_ Field strength at 10. 00456_ Stasis field depleted. 00516_ Beams of light sweep through the air. An alarm sounds. 00523_ Aluminum Leg destroyed. 00524_ Beams of light sweep through the air. An alarm sounds. Garrison Door activated. 00525_ Aluminum Leg destroyed. 00526_ Lgt. Nuclear Core destroyed. Map ----- +----------------------------------------------------+ | ?????????????????????????????????????????????????? | | ?????????????????????????????????????????????????? | | ?????????????????????????????????????????????????? | | ?????????????????????????????????????????????????? | | ?????????????????????????????????????????????????? | | ?????????????????????????????????????????????????? | | ?????????????????????????????????????????????????? | | ?????????????????????????????????????????????????? | | ?????????????????????????????????????????????????? | | ?????????????????????????????????????????????????? | | ????????????????????????? ??????????????????????? | | ????????????????????????? ??????????????????????? | | ????????????????????????? ??????????????????????? | | ??????????????????##????? #?????????????????????? | | ??????????????????# ???? #?????????????????????? | | ??????????????##### ???# ##????????????????????? | | ??????????????? g ?? ##???????????????????? | | ???????????? ? g?? ????????????????????? | | ????????????? ? ? ????????????????????? | | ?????????????# ?# ?# #????????????????????? | | ?????????????# ## ## ###??????????????????? | | ???????????# " l g#??????????????????? | | ???????????? g g#??????????????????? | | ?????????????? g #??????????????????? | | ???????????????? g g #??????????????????? | | ?????????????# ???# ?#g #????????????????????? | | ??????????#### ## ## #????????????????????? | | ???????? #????????????????????? | | ???????? #????????????????????? | | ???????? #????????????????????? | | ??????????######### ## #????????????????????? | | ??????????????????# ?# #????????????????????? | | ??????????????????#####?# #????????????????????? | | ????????????????????????# #????????????????????? | | ????????????????????????# #????????????????????? | | ????????????????????????# #????????????????????? | | ????????????????????????# ###################### | | ????????????????????????# | | ????????????????????????# | | ????????????????????????# | | ????????????????????????##################### ### | | ????????????????????????????????????????????# #?? | | ????????????????????????????????????????????# #?? | | ??????????????????????????????############### #?? | | ??????????????????????????????# ^=![ #?? | | ??????????????????????????????# =%*% #?? | | ??????????????????????????????## ##### #####?? | | ??????????????????????????????#"""""#??# #?????? | | ??????????????????????????????#######??#####?????? | | ?????????????????????????????????????????????????? | +----------------------------------------------------+ Best States ------------- Heat Dissipation 40 Energy Generation 19 Energy Capacity 110 Sight Range 16 Terrain Scan Range 16 Terrain Scan Density 10 Evasion (%) 55 Item Schematics ----------------- None Robot Schematics ------------------ None Fabricated ------------ Nothing Repaired ---------- Nothing Studied --------- None Alien Tech Used ----------------- None Achievements -------------- None Challenges ------------ None Polymind | -11 -10 -9 -8 -7 -7 ---------- Run | Yrd Mat Mat Mat Fac Gar Hosts 2 | 1 . . . 1 . Combat Hostiles 1 | . . . . 1 . Allies . | . . . . . . Unique Host Classes 2 | 1 . . . 1 . Average Host Suspicion 58 | . 15 45 55 100 76 Unsuspicious Activity 32 | 17 5 10 . . . Returns to Shadow . | . . . . . . Fuzzy Dispatches . | . . . . . . Protomatter Created . | . . . . . . Used 35 | 5 . . . 30 . Decayed . | . . . . . . Highest Spend 30 | 5 . . . 30 . Top 5 Hosts by Kills: G-47 Trooper (-7/Factory: 5) Game ------ Seed ForceNavigationDetonator Manual? 0 Play Time 00:06:30 Cumulative 142.6 hours Start 2026.07.30 @ 20:14:54 End 2026.07.30 @ 20:20:26 Sessions 1 Manual Loads 0 Difficulty Rogue Special Mode Winter2022/Polymind Game No. 127 Rogue 126 Adventurer 0 Explorer 1 Win Type - Total 8 Types 5/0/1/1/0/0/0/1/0/0 Lore% 75 Gallery% 65 Achievement% 45 Wizard Run 0 Options --------- Layout 1 ASCII 0 Keyboard 0 Movement Arrows Keybinds 0 Fullscreen 1 Font 24/Smallcaps Map View 50x35 Zoom Use 0% Tactical HUD 1 Map Filters NONE Filters NONE Steam 1 RUN: 605d5247-fec3-494a-9896-bbb9f452044d